[Event "Summer Prague Open-A 2022"]
[Site "Prague"]
[Date "2022.08.10"]
[Round "7.22"]
[White "Gloser, David"]
[Black "Salem Eid, Ahmed"]
[Result "1-0"]
[ECO "B48"]
[WhiteElo "2221"]
[BlackElo "2165"]
[Annotator "TA"]
[PlyCount "53"]
[EventDate "2022.08.05"]
[EventType "swiss"]
[EventCountry "CZE"]
[SourceTitle "playchess.com"]
[Source "ChessBase"]
[SourceQuality "1"]
[TimeControl "40/5400+30:1800+30"]

{[%evp 11,53,32,52,0,0,0,0,-13,24,20,69,72,75,25,112,114,101,118,120,123,128,135,188,172,207,218,310,316,365,376,409,410,418,416,384,387,386,381,487,475,712,679,682,672]} 1. e4 {[%emt 0:00:01]} c5 {[%emt 0:03:48]} 2. Nc3 {[%emt 0:00:07]} Nc6 {[%emt 0:00:12]} 3. Nge2 {[%emt 0:00:05]} e6 {[%emt 0:00:58]} 4. d4 {[%emt 0:00:18]} cxd4 {[%emt 0:00:16]} 5. Nxd4 {[%emt 0:00:06]} Qc7 {[%emt 0:00:39]} 6. Be3 {[%emt 0:00:23]} a6 {[%emt 0:00:24]} 7. g4 {[%emt 0:00:09] The modern move. B48: Sicilian: Taimanov: 5 Nc3 Qc7 6 Be3 a6 without Be2.} (7. a3 $14) 7... b5 $11 {[%emt 0:14:21]} 8. Nxc6 {[%emt 0:01:13]} Qxc6 {[%emt 0:05:55]} 9. Qd2 {[%emt 0:00:44] The position is equal.} Nf6 {[%emt 0:09:06]} 10. f3 {[%emt 0:07:29]} Bb7 {[%emt 0:23:09]} (10... h6 $11) 11. g5 $14 {[%emt 0:05:36]} Nh5 {[%emt 0:00:11] [#]} 12. Bh3 $146 {[%emt 0:02:52]} (12. O-O-O $1 $16) ({Predecessor:} 12. O-O-O Bb4 13. Bd4 O-O 14. Bh3 d6 15. Bg4 g6 16. Bxh5 gxh5 17. a3 Ba5 18. Bf6 {1-0 (25) Lu,S (2639)-Zhao,Y (2385) Shenyang 2019}) 12... Bc5 {[%emt 0:09:28]} (12... Qd6 $11 {remains equal.}) 13. Bg4 $16 {[%emt 0:04:38]} g6 {[%emt 0:02:04]} 14. O-O-O {[%emt 0:04:37][%cal Ba1d1,Bd1d2,Bd2d6][%mdl 32]} Bxe3 {[%emt 0:00:45]} 15. Qxe3 {[%emt 0:00:15] Black must now prevent Bxh5.} Rc8 {[%emt 0:06:52]} 16. Qd4 {[%emt 0:08:21] White is more active.} Rg8 {[%emt 0:00:39]} (16... O-O $16 {might work better.}) 17. Rd2 $18 {[%emt 0:03:03]} Ng7 {[%emt 0:05:16]} 18. Rhd1 {[%emt 0:05:01]} Rc7 {[%emt 0:00:38]} (18... d6 {keeps fighting.} 19. Qxd6 Qxd6 20. Rxd6 Rh8) 19. Qe5 {[%emt 0:02:50] Threatens to win with Nd5.} Kd8 {[%emt 0:11:11]} 20. Rd6 {[%emt 0:06:20]} Qc4 {[%emt 0:00:18]} 21. Qf6+ {[%emt 0:01:30]} Ke8 {[%emt 0:03:35] [#]} 22. Rxd7 $3 {[%emt 0:02:06][%mdl 512]} Rxd7 {[%emt 0:00:02]} 23. Rxd7 {[%emt 0:00:06][%mdl 64] Remove Defender. Really sharp!} Kxd7 {[%emt 0:00:05]} 24. Qxf7+ {[%emt 0:00:17]} Kd6 {[%emt 0:00:26] ...Qc8 is the strong threat.} 25. Qxg8 {[%emt 0:01:05] White is clearly winning.} Qf1+ {[%emt 0:00:53]} (25... Qc7 $142 26. Qxh7 Qf7) 26. Nd1 {[%emt 0:00:51]} Bxe4 {[%emt 0:01:39]} 27. Qxg7 {[%emt 0:01:17] Weighted Error Value: White=0.07 (flawless) /Black=0.35} 1-0

[Event "Summer Prague Open-A 2022"]
[Site "Prague"]
[Date "2022.08.10"]
[Round "7.23"]
[White "Dauth, Benjamin"]
[Black "Carnot, Luca"]
[Result "1-0"]
[ECO "B34"]
[WhiteElo "2243"]
[BlackElo "2035"]
[Annotator "TA"]
[PlyCount "59"]
[EventDate "2022.08.05"]
[EventType "swiss"]
[EventCountry "CZE"]
[SourceTitle "playchess.com"]
[Source "ChessBase"]
[SourceQuality "1"]
[TimeControl "40/5400+30:1800+30"]

{[%evp 14,59,-10,-10,-10,-5,21,-6,0,0,0,-23,0,-2,-4,-11,0,0,-10,-7,0,0,0,-13,-12,-14,0,0,0,0,105,112,2563,2395,2514,2409,2365,2315,2315,110,2089,1910,29964,7362,7265,7258,2688,1130]} 1. e4 {[%emt 0:00:05]} c5 {[%emt 0:00:04]} 2. Nf3 {[%emt 0:00:11]} Nc6 {[%emt 0:00:04]} 3. d4 {[%emt 0:00:08]} cxd4 {[%emt 0:00:05]} 4. Nxd4 {[%emt 0:00:04]} g6 {[%emt 0:00:38]} 5. Nxc6 {[%emt 0:01:27]} bxc6 {[%emt 0:00:06]} 6. Bd3 {[%emt 0:00:05]} Bg7 {[%emt 0:00:46]} 7. O-O {[%emt 0:00:07]} Nf6 {[%emt 0:01:13][%cal Bg8f6,Bf6d7,Bd7c5][%mdl 32] The main line 7...Nf6 scores better than 7...d6.} 8. Nc3 {[%emt 0:01:15]} O-O {[%emt 0:01:45] B33: Sicilian: Pelikan and Sveshnikov Variations.} 9. Qe2 {[%emt 0:00:27]} Qc7 {[%emt 0:01:21]} 10. Bd2 {[%emt 0:00:45]} (10. e5 $5 {[%cal Re5f6]} Nd5 11. Nxd5 cxd5 12. Bf4 $11) 10... d6 {[%emt 0:00:44] [#] The position is equal.} 11. Rae1 $146 {[%emt 0:00:39]} ({Predecessor:} 11. g3 Bh3 12. Rfe1 Ng4 13. Rab1 Ne5 14. Bc4 Bg4 15. Qf1 Nf3+ 16. Kh1 Nxd2 17. Qd3 Nxb1 18. Rxb1 {0-1 (45) Greuel,J-Almeida,S Brusque 2000}) 11... Nd7 {[%emt 0:06:43]} 12. Nd1 {[%emt 0:01:38]} Nc5 {[%emt 0:01:25]} 13. Bc3 {[%emt 0:00:10]} e5 {[%emt 0:02:23]} 14. f4 {[%emt 0:04:10]} exf4 {[%emt 0:02:07] White should prevent ...Bxc3.} 15. Bxg7 {[%emt 0:00:22]} Kxg7 {[%emt 0:00:02]} 16. Rxf4 {[%emt 0:00:23]} Nd7 {[%emt 0:01:57]} 17. b3 {[%emt 0:03:22]} Ne5 {[%emt 0:00:12]} 18. Ne3 {[%emt 0:00:21]} Be6 {[%emt 0:03:26]} 19. Ref1 {[%emt 0:12:14]} Qb6 {[%emt 0:01:54]} 20. Kh1 {[%emt 0:00:23]} Rae8 {[%emt 0:11:26]} 21. Nf5+ {[%emt 0:13:22]} gxf5 {[%emt 0:04:12]} (21... Bxf5 $11 22. exf5 f6) 22. exf5 $16 {[%emt 0:01:23][%cal Be4f5,Bf5f6][%mdl 32] Intending f6+ and mate.} Bd5 $2 {[%emt 0:08:42][%mdl 8192] [#]} (22... Nxd3 $16 23. Qxd3 f6) 23. f6+ $1 $18 {[%emt 0:04:12]} Kh8 {[%emt 0:01:55]} 24. Rh4 {[%emt 0:02:31][%cal Bf4h4,Bh4h7,Bh7g7,Bg7h7][%mdl 32]} Nf3 {[%emt 0:21:20]} 25. Rxh7+ {[%emt 0:00:19]} Kg8 {[%emt 0:00:01]} 26. Rg7+ $40 {[%emt 0:00:16][%mdl 128] Black is in trouble.} Kh8 {[%emt 0:00:00]} 27. Qd1 {[%emt 0:28:33]} Qe3 {[%emt 0:04:26]} 28. Rh7+ {[%emt 0:00:58]} Kg8 {[%emt 0:01:33]} 29. gxf3 {[%emt 0:00:16] [#] Threatening mate with Rg1+.} Re5 {[%emt 0:00:48]} 30. Rg1+ {[%emt 0:00:24] Weighted Error Value: White=0.04 (flawless) /Black=0.54} (30. h4 $142 Be4 31. Bxe4 Rxe4 32. Rg7+ Kh8 33. fxe4 Qxe4+ 34. Kg1 Qe3+ 35. Rf2) 1-0

[Event "Summer Prague Open-A 2022"]
[Site "Prague"]
[Date "2022.08.10"]
[Round "7.24"]
[White "Prilleltensky, Matan"]
[Black "Shamian, Artur"]
[Result "1-0"]
[ECO "E24"]
[WhiteElo "2191"]
[BlackElo "2000"]
[Annotator "TA"]
[PlyCount "107"]
[EventDate "2022.08.05"]
[EventType "swiss"]
[EventCountry "CZE"]
[SourceTitle "playchess.com"]
[Source "ChessBase"]
[SourceQuality "1"]
[TimeControl "40/5400+30:1800+30"]

{[%evp 10,107,5,-18,6,0,4,10,6,-8,0,0,0,-2,0,0,0,0,26,15,29,21,19,0,23,0,0,-12,0,0,0,-12,0,0,0,0,72,83,126,114,135,135,216,219,223,208,197,202,199,216,206,195,199,199,199,169,202,205,205,212,209,146,157,159,278,277,369,399,358,365,347,368,295,158,139,146,153,154,716,291,286,270,252,169,3531,3639,1852,2178,29988,29984,29990,29991,29991,29992,29992,29988,29990,29991,29991,29992]} 1. d4 {[%emt 0:00:03]} Nf6 {[%emt 0:20:26]} 2. c4 {[%emt 0:00:07]} e6 {[%emt 0:00:04]} 3. Nc3 {[%emt 0:00:10]} Bb4 {[%emt 0:00:05]} 4. a3 {[%emt 0:00:07]} Bxc3+ {[%emt 0:00:11]} 5. bxc3 {[%emt 0:00:05]} b6 {[%emt 0:00:32]} 6. f3 {[%emt 0:00:11]} h6 {[%emt 0:02:18] E24: Nimzo-Indian: Sämisch: Unusual Black 5th moves and 5...c5 sidelines.} 7. e4 {[%emt 0:00:35]} d6 {[%emt 0:06:30]} 8. Bd3 {[%emt 0:00:24]} O-O {[%emt 0:02:57] The position is equal.} 9. Nh3 {[%emt 0:04:17] [#]} Nc6 $146 {[%emt 0:04:32]} ({Predecessor:} 9... e5 10. dxe5 Bxh3 11. gxh3 dxe5 12. Be3 Nh5 13. c5 Nf4 14. Bxf4 exf4 15. cxb6 Qh4+ 16. Ke2 axb6 17. Bb5 Qg5 18. Qb3 Qg2+ 19. Kd3 c6 20. Bxc6 Nxc6 21. Qxb6 Ne5+ {0-1 (21) Jansen,U (1659)-Zabransky,F (1936) LSS email 2014}) 10. Be3 {[%emt 0:01:39]} e5 {[%emt 0:05:05]} 11. Nf2 {[%emt 0:00:55]} Ba6 {[%emt 0:04:02]} 12. O-O {[%emt 0:04:00]} Na5 {[%emt 0:01:49]} 13. Qe2 {[%emt 0:01:45]} c5 {[%emt 0:01:02]} 14. d5 {[%emt 0:02:53]} Qd7 {[%emt 0:19:28]} 15. a4 {[%emt 0:00:37]} Rae8 {[%emt 0:03:15]} 16. Nd1 {[%emt 0:02:44]} Qe7 {[%emt 0:01:54]} 17. Ra3 {[%emt 0:05:33]} Nh5 {[%emt 0:03:38]} 18. g3 $1 {[%emt 0:01:05] Against Nf4} Bc8 {[%emt 0:04:29]} 19. Qc2 {[%emt 0:09:38]} Ba6 {[%emt 0:03:14]} 20. Qe2 {[%emt 0:01:48]} Bc8 {[%emt 0:00:27]} 21. Qc2 {[%emt 0:08:13]} Ba6 {[%emt 0:00:16]} 22. Nb2 {[%emt 0:00:58]} f5 {[%emt 0:08:19]} (22... Qf6 $11 {keeps the balance.}) 23. exf5 $16 {[%emt 0:03:30]} Nf6 {[%emt 0:00:16]} 24. Raa1 {[%emt 0:01:36]} e4 {[%emt 0:02:39]} 25. fxe4 {[%emt 0:00:50]} Ng4 {[%emt 0:02:06]} (25... Nxe4 $16 {was worth a try.} 26. Rae1 Nf6) 26. Bf4 $18 {[%emt 0:05:06]} Ne5 {[%emt 0:00:29]} 27. Rae1 {[%emt 0:07:45]} Bxc4 {[%emt 0:03:21]} 28. Bxe5 {[%emt 0:03:11]} Bxd3 {[%emt 0:00:02]} 29. Nxd3 {[%emt 0:01:00]} ({Resist} 29. Qxd3 $6 Qxe5 30. Re2 Rc8 $16) 29... dxe5 {[%emt 0:00:02]} 30. c4 {[%emt 0:04:30]} Nb7 {[%emt 0:00:45]} 31. Nf2 {[%emt 0:02:00]} Nd6 {[%emt 0:00:25]} 32. a5 {[%emt 0:04:13]} Qc7 {[%emt 0:01:08]} 33. axb6 {[%emt 0:00:23]} axb6 {[%emt 0:00:14]} 34. Ra1 {[%emt 0:03:47]} Ra8 {[%emt 0:00:58]} 35. Rxa8 {[%emt 0:00:40]} Rxa8 {[%emt 0:00:01]} 36. f6 {[%emt 0:00:31] [#] Black must now prevent Ng4.} Rf8 {[%emt 0:00:56]} (36... h5 $16) 37. Ng4 {[%emt 0:03:35]} Ne8 {[%emt 0:00:06]} 38. fxg7 {[%emt 0:04:32]} Rxf1+ {[%emt 0:00:06]} 39. Kxf1 {[%emt 0:00:05]} Qxg7 {[%emt 0:00:25][%mdl 4096] Endgame KQN-KQN} 40. Ne3 {[%emt 0:06:52]} Nd6 {[%emt 0:00:21]} 41. Nf5 {[%emt 0:32:44]} (41. Qd3 $18) 41... Nxf5 $16 {[%emt 0:05:00]} 42. exf5 {[%emt 0:00:00] KQ-KQ} Qg4 {[%emt 0:00:15] Inhibits Qe4.} 43. Kg2 {[%emt 0:00:00] Strongly threatening f6.} Qd4 $2 {[%emt 0:07:43] Loses the game.} (43... e4 $16) 44. Kf3 {[%emt 0:00:00]} (44. Qe2 $142 Kf8 45. Qh5 Qb2+ 46. Kh3) 44... Kf7 $18 {[%emt 0:03:23]} 45. Qe4 {[%emt 0:00:00] [#] Hoping for Qxd4.} Qd1+ {[%emt 0:04:31]} 46. Kg2 {[%emt 0:00:00]} Qd2+ $2 {[%emt 0:10:48]} (46... Kf6 47. Kf2 Qd2+ 48. Qe2 (48. Kf3 Qxh2 49. Qg4 Qh1+ 50. Ke2 Qg2+ 51. Ke3 Qg1+ 52. Ke2 Qg2+ 53. Ke3 Qg1+ 54. Ke2 Qg2+ $11) 48... Qd4+ 49. Kg2 Ke7) 47. Kh3 {[%emt 0:00:00]} Kf6 {[%emt 0:01:11]} 48. Qg4 {[%emt 0:00:00] Qg6+ would kill now.} e4 {[%emt 0:02:02]} 49. Qxe4 {[%emt 0:00:00] White mates.} Qf2 {[%emt 0:00:29]} 50. Qe6+ {[%emt 0:00:00]} Kg7 {[%emt 0:00:03]} 51. Qg6+ {[%emt 0:00:56]} Kf8 {[%emt 0:00:04]} 52. Qxh6+ {[%emt 0:00:24]} Ke8 {[%emt 0:00:12]} 53. Qe6+ {[%emt 0:00:44]} Kd8 {[%emt 0:00:34]} 54. d6 {Weighted Error Value: White=0.20 (precise) /Black=0.28 (precise)} 1-0

[Event "Summer Prague Open-A 2022"]
[Site "Prague"]
[Date "2022.08.11"]
[Round "8.1"]
[White "Cernousek, Lukas"]
[Black "Lutsko, Artem"]
[Result "0-1"]
[ECO "B90"]
[WhiteElo "2429"]
[BlackElo "2392"]
[Annotator "TA"]
[PlyCount "52"]
[EventDate "2022.08.05"]
[EventType "swiss"]
[EventCountry "CZE"]
[SourceTitle "playchess.com"]
[Source "ChessBase"]
[SourceQuality "1"]
[TimeControl "40/5400+30:1800+30"]

{[%evp 13,52,19,27,5,12,11,19,32,28,20,42,52,58,61,67,73,68,67,69,62,42,-40,-29,-53,-63,-122,-116,-262,-248,-239,-212,-352,-338,-925,-931,-915,-912,-876,-868,-822,-735]} 1. e4 {[%emt 0:00:03]} c5 {[%emt 0:00:03]} 2. Nf3 {[%emt 0:00:08]} d6 {[%emt 0:00:02]} 3. d4 {[%emt 0:00:12]} cxd4 {[%emt 0:00:04]} 4. Nxd4 {[%emt 0:00:07]} Nf6 {[%emt 0:00:03]} 5. Nc3 {[%emt 0:00:15]} a6 {[%emt 0:00:04]} 6. Be3 {[%emt 0:00:09]} e5 {[%emt 0:00:06]} 7. Nb3 {[%emt 0:00:10]} Be7 {[%emt 0:00:16]} 8. h3 {[%emt 0:02:38] B90: Sicilian Najdorf: Unusual White 6th moves, 6 Be3 Ng4 and 6 Be3 e5.} Be6 {[%emt 0:01:54]} 9. f4 {[%emt 0:00:17]} exf4 {[%emt 0:01:53]} 10. Bxf4 {[%emt 0:00:02] The position is equal.} Nc6 {[%emt 0:01:32]} 11. Qe2 {[%emt 0:00:18]} Qc7 {[%emt 0:08:04]} 12. O-O-O {[%emt 0:25:52]} O-O {[%emt 0:00:59]} 13. g4 {[%emt 0:09:32]} g6 {[%emt 0:19:49]} 14. Kb1 {[%emt 0:20:05]} Ne5 {[%emt 0:04:58] [#]} 15. Nd5 $146 {[%emt 0:15:13]} ({Predecessor:} 15. Qg2 b5 16. Be2 Rfc8 17. Nd4 Qa5 18. Nd5 Bxd5 19. exd5 Nfd7 20. Nc6 Nxc6 21. dxc6 {1-0 (31) Kacprzak,K (2229)-Olszewski,M (2522) Bydgoszcz 2021}) 15... Nxd5 {[%emt 0:02:57]} 16. exd5 {[%emt 0:00:04]} Bd7 {[%emt 0:00:05]} 17. g5 {[%emt 0:07:34]} (17. Bxe5 $14 dxe5 18. Nd2) 17... Rfe8 $15 {[%emt 0:04:08]} 18. Nd4 {[%emt 0:07:35]} Bf8 {[%emt 0:00:22]} 19. Bg2 {[%emt 0:01:37]} (19. c3 $15) 19... Bg7 {[%emt 0:03:38]} 20. b3 {[%emt 0:02:17] [#] White does not recover from this.} (20. c3 $17) 20... a5 $1 $19 {[%emt 0:07:15][%cal Ba6a5,Ba5a4,Ba4a3][%mdl 32] aiming for ...a4.} 21. Bc1 {[%emt 0:05:45]} a4 {[%emt 0:01:15] Strongly threatening ...axb3.} 22. Qd2 {[%emt 0:00:19]} (22. Qf2 $142) 22... Qb6 {[%emt 0:02:09] ...axb3 is the strong threat.} 23. Bb2 $2 {[%emt 0:01:11] [#]} (23. Rhf1 Nc4 24. Qf2) 23... Nc4 $1 {[%emt 0:00:31][%mdl 512] Black is clearly winning.} 24. bxc4 {[%emt 0:00:24]} a3 {[%emt 0:00:02][%csl Ga3][%cal Rb6b2][%mdl 64] Pin} 25. c3 {[%emt 0:00:16]} Bxd4 {[%emt 0:00:44]} 26. cxd4 {[%emt 0:00:05]} Bf5+ {[%emt 0:00:04] Weighted Error Value: White=0.49/Black=0.02 (flawless)} 0-1

[Event "Summer Prague Open-A 2022"]
[Site "Prague"]
[Date "2022.08.11"]
[Round "8.2"]
[White "Zamengo, Fulvio"]
[Black "Mirzoev, Azer"]
[Result "1/2-1/2"]
[ECO "C17"]
[WhiteElo "2396"]
[BlackElo "2424"]
[Annotator "TA"]
[PlyCount "152"]
[EventDate "2022.08.05"]
[EventType "swiss"]
[EventCountry "CZE"]
[SourceTitle "playchess.com"]
[Source "ChessBase"]
[SourceQuality "1"]
[TimeControl "40/5400+30:1800+30"]

{[%evp 17,152,26,29,24,18,12,7,14,6,6,23,17,12,24,32,32,27,0,0,0,0,0,0,0,0,0,0,0,0,0,0,0,0,0,0,0,0,0,0,0,0,0,0,-14,-16,-16,-20,-28,0,0,0,-224,-224,-223,-223,-223,-220,-216,-218,-235,-223,-218,-226,-484,-470,-764,-723,-760,-772,-665,-763,-737,-756,-721,-721,-618,-602,-577,-540,-752,-748,-748,-700,-763,-541,-1069,-1104,-940,-814,-555,-533,-533,-533,-500,0,-511,-511,-473,-106,-106,-106,-110,-110,-111,-110,-110,-111,-111,0,0,0,0,0,0,0,0,0,0,0,0,0,0,0,0,0,0,0,0,0,0,0,0,0,0,0,0,0]} 1. e4 {[%emt 0:00:16]} e6 {[%emt 0:00:49]} 2. d4 {[%emt 0:01:30]} d5 {[%emt 0:00:05]} 3. Nc3 {[%emt 0:00:06]} Bb4 {[%emt 0:00:55]} 4. e5 {[%emt 0:02:04]} c5 {[%emt 0:00:07]} 5. a3 {[%emt 0:00:05]} Ba5 {[%emt 0:00:09]} 6. b4 {[%emt 0:00:56]} cxd4 {[%emt 0:00:06]} 7. Nb5 {[%emt 0:00:06]} Bc7 {[%emt 0:00:21]} 8. f4 {[%emt 0:01:48]} Bd7 {[%emt 0:01:05]} 9. Nxc7+ {[%emt 0:00:27]} Qxc7 {[%emt 0:00:13]} 10. Nf3 {[%emt 0:03:39] C18: French: 3 Nc3 Bb4: Main line: 7 h4 and 7 Qg4.} Ba4 {[%emt 0:02:04]} 11. Bb2 {[%emt 0:00:43]} Ne7 {[%emt 0:02:53]} 12. Bd3 {[%emt 0:13:12]} Nbc6 {[%emt 0:01:43]} 13. Qd2 {[%emt 0:07:51]} a6 {[%emt 0:02:50] Against b5} 14. Nxd4 {[%emt 0:01:18]} Nxd4 {[%emt 0:01:37]} 15. Bxd4 {[%emt 0:00:08]} O-O {[%emt 0:02:16] [#]} 16. O-O $146 {[%emt 0:01:32]} ({Predecessor:} 16. g4 Rfc8 17. O-O Bb5 18. Qf2 Bxd3 19. cxd3 a5 20. b5 Qc2 21. Qe3 Qa4 22. f5 {1-0 (32) Schmid,P (2525)-Martin,P (1993) ICCF email 2019}) 16... Bb5 {[%emt 0:00:21]} 17. a4 {[%emt 0:07:51]} Bxd3 {[%emt 0:01:56]} (17... Nf5 {with more complications.} 18. axb5 Nxd4 19. bxa6 bxa6 20. Bxh7+ Kxh7 21. Qxd4 Qxc2 22. f5 exf5 23. Qxd5 Rab8) 18. cxd3 {[%emt 0:00:10]} Rfc8 {[%emt 0:00:30]} 19. Rfc1 {[%emt 0:09:08]} Qd7 {[%emt 0:00:55]} 20. Bc5 {[%emt 0:00:06]} d4 {[%emt 0:10:12]} 21. Bxe7 {[%emt 0:19:17]} Qxe7 {[%emt 0:03:20]} 22. Rxc8+ {[%emt 0:00:06]} Rxc8 {[%emt 0:00:07]} 23. Rc1 $1 {[%emt 0:00:05]} Rxc1+ {[%emt 0:00:29]} 24. Qxc1 $11 {[%emt 0:00:08][%mdl 4096] Endgame KQ-KQ} h5 {[%emt 0:04:20]} 25. Qc4 {[%emt 0:02:43]} Qd7 {[%emt 0:04:12]} 26. b5 {[%emt 0:01:02]} axb5 {[%emt 0:00:20]} 27. axb5 {[%emt 0:00:27]} Qd8 {[%emt 0:01:24]} 28. h3 {[%emt 0:07:29]} g6 {[%emt 0:01:01]} 29. Kf2 {[%emt 0:00:49]} Kg7 {[%emt 0:03:15]} 30. Kf3 {[%emt 0:00:09]} Qa5 {[%emt 0:01:27]} 31. h4 {[%emt 0:08:17]} Qa1 {[%emt 0:03:28] Hoping for ...Qd1+.} 32. Kf2 $1 {[%emt 0:01:47]} Qh1 {[%emt 0:16:21]} 33. Qxd4 {[%emt 0:00:06]} Qxh4+ {[%emt 0:00:07]} 34. Kg1 $2 {[%emt 0:04:57]} (34. Kf3 $11 {and White has nothing to worry.}) 34... g5 $19 {[%emt 0:10:30][%cal Bg6g5,Bg5g4,Bg4g3][%mdl 32]} 35. Qe4 {[%emt 0:00:04]} Qxf4 {[%emt 0:06:34]} 36. Qxb7 {[%emt 0:00:05]} Qe3+ {[%emt 0:00:10]} ({Weaker is} 36... Qxe5 37. b6 $17) 37. Kf1 {[%emt 0:03:29]} Qxd3+ {[%emt 0:00:04]} 38. Kf2 {[%emt 0:00:07]} Qd4+ {[%emt 0:00:18]} 39. Kf1 {[%emt 0:00:20]} g4 {[%emt 0:02:07] Prevents Qf3.} ({Stronger than} 39... Qxe5 40. b6) 40. b6 $2 {[%emt 0:02:59]} (40. g3) 40... h4 {[%emt 0:02:23]} 41. Qe7 {[%emt 0:10:15]} (41. Qc7 {gets mated.} Qd1+ 42. Kf2 Qd2+ 43. Kf1 g3) (41. Ke2 $142 Qxe5+ 42. Kd3) 41... Qd1+ {[%emt 0:24:20]} 42. Kf2 {[%emt 0:00:06]} Qd2+ $1 {[%emt 0:00:13]} 43. Kf1 {[%emt 0:02:03]} g3 $1 {[%emt 0:12:14][%cal Rd2d1]} 44. Qf6+ {[%emt 0:00:06]} Kg8 {[%emt 0:00:06][%cal Rd2d1]} 45. Qf3 {[%emt 0:00:05] Inhibits Qd1+.} Qc1+ {[%emt 0:00:11]} 46. Ke2 {[%emt 0:00:04]} Qb2+ {[%emt 0:00:04]} 47. Kd3 {[%emt 0:06:22]} Qxb6 {[%emt 0:01:51]} 48. Qg4+ {[%emt 0:00:04]} Kf8 {[%emt 0:00:09]} 49. Qxh4 {[%emt 0:00:03]} Qb5+ {[%emt 0:00:15]} 50. Ke3 {[%emt 0:00:49]} Qxe5+ {[%emt 0:00:06]} 51. Kf3 {[%emt 0:00:05]} Qc3+ {[%emt 0:00:20]} 52. Ke2 {[%emt 0:00:13]} Qc2+ {[%emt 0:00:51]} 53. Ke3 {[%emt 0:00:02]} Qf2+ {[%emt 0:02:05]} 54. Kd3 {[%emt 0:00:06]} Qf5+ {[%emt 0:00:12]} 55. Ke2 {[%emt 0:01:42]} Qe5+ {[%emt 0:00:04]} 56. Kf3 {[%emt 0:00:06] [#]} Kg7 $1 {[%emt 0:00:09]} 57. Qg4+ {[%emt 0:00:32] [#]} Kh6 $2 {[%emt 0:01:23]} (57... Kh7 $1 $19 {is more deadly. aiming for ...Qc3+.} 58. Qb4 Qg5) 58. Qb4 $17 {[%emt 0:01:12]} Kg6 {[%emt 0:00:27] ...f5 is the strong threat.} 59. Qf8 {[%emt 0:02:21]} Qc3+ {[%emt 0:02:08]} 60. Kf4 {[%emt 0:02:48]} Qg7 {[%emt 0:00:31]} 61. Qc5 {[%emt 0:06:26]} Qf6+ {[%emt 0:01:07]} 62. Kg4 {[%emt 0:00:04]} Qf5+ {[%emt 0:04:11]} (62... e5 $17 63. Qc2+ Kg7) 63. Qxf5+ $11 {[%emt 0:00:07] The position is equal.} exf5+ {[%emt 0:00:02]} 64. Kxg3 {[%emt 0:00:07] KPP-KP} Kg5 {[%emt 0:00:14]} 65. Kf3 {[%emt 0:00:05]} f4 {[%emt 0:00:38]} 66. Ke4 {[%emt 0:00:09]} Kg4 {[%emt 0:01:49]} 67. Ke5 {[%emt 0:00:24]} Kg5 {[%emt 0:02:24]} 68. Ke4 {[%emt 0:00:06]} f6 {[%emt 0:01:03]} 69. Kd5 $1 {[%emt 0:00:02]} Kf5 {[%emt 0:01:01]} 70. Kd6 $1 {[%emt 0:00:53]} Kg4 {[%emt 0:01:23] ( -> ...Kg3)} 71. Ke6 {[%emt 0:00:05]} Kg5 {[%emt 0:00:11]} 72. Kd5 {[%emt 0:00:06]} Kg4 {[%emt 0:00:59]} 73. Ke6 {[%emt 0:00:05]} Kg3 {[%emt 0:00:26]} 74. Kf5 {[%emt 0:00:06]} f3 {[%emt 0:00:15]} 75. gxf3 {[%emt 0:00:01]} Kxf3 {[%emt 0:00:04]} 76. Kxf6 Ke4 {Whites escaped into a draw.  Weighted Error Value: White=0.41/Black=0.12 (very precise)} 1/2-1/2

[Event "Summer Prague Open-A 2022"]
[Site "Prague"]
[Date "2022.08.11"]
[Round "8.3"]
[White "Zanan, Evgeny"]
[Black "Neuman, Petr"]
[Result "1/2-1/2"]
[ECO "D11"]
[WhiteElo "2521"]
[BlackElo "2378"]
[Annotator "TA"]
[PlyCount "33"]
[EventDate "2022.08.05"]
[EventType "swiss"]
[EventCountry "CZE"]
[SourceTitle "playchess.com"]
[Source "ChessBase"]
[SourceQuality "1"]
[TimeControl "40/5400+30:1800+30"]

{[%evp 9,33,6,4,14,20,-8,0,-28,4,-12,-14,0,-10,-18,-15,0,0,-1,0,-38,-19,-36,-20,-21,-22,-29]} 1. d4 {[%emt 0:01:58]} d5 {[%emt 0:00:10]} 2. c4 {[%emt 0:00:11]} c6 {[%emt 0:00:06]} 3. Nf3 {[%emt 0:00:07]} Nf6 {[%emt 0:00:07][%cal Bg8f6,Bf6e4,Be4c3][%mdl 32]} 4. g3 {[%emt 0:00:46]} g6 {[%emt 0:00:09]} 5. Qa4 {[%emt 0:01:30]} Bg7 {[%emt 0:00:33]} 6. cxd5 {[%emt 0:00:13] D11: Slav Defence: 3 Nf3 sidelines and 3...Nf6 4 e3 Bg4.} O-O {[%emt 0:00:05]} 7. Bg2 {[%emt 0:04:09]} cxd5 {[%emt 0:05:39] [#]} 8. Ne5 $146 {[%emt 0:00:09]} ({Predecessor:} 8. O-O Nc6 9. Nc3 Ne4 10. Qb3 Nxd4 11. Nxd4 Bxd4 12. Nxd5 Nd6 13. Bh6 Re8 14. Rfd1 Bh8 15. Rac1 Be6 16. Qa3 Bxd5 17. Bxd5 Qb6 {1-0 (56) Stein,R (2325)-Holtel,J (2305) Magdeburg 2020}) 8... Ne4 {[%emt 0:00:45]} (8... Nfd7 $5 {[%cal Rd7e5]}) 9. Nc3 {[%emt 0:03:48]} Nxc3 {[%emt 0:17:44]} 10. bxc3 {[%emt 0:02:55]} Nd7 {[%emt 0:00:21]} 11. Nxd7 {[%emt 0:11:56]} Bxd7 {[%emt 0:00:05]} 12. Qb3 {[%emt 0:00:17]} Bc6 {[%emt 0:00:05]} 13. O-O {[%emt 0:00:05]} Qd7 {[%emt 0:00:41]} 14. Ba3 {[%emt 0:01:24]} Rfc8 {[%emt 0:00:39]} 15. e3 {[%emt 0:00:38]} e6 {[%emt 0:00:56]} 16. Rab1 {[%emt 0:00:36]} Rc7 {[%emt 0:00:39]} 17. Rfc1 {[%emt 0:06:57] Weighted Error Value: White=0.14 (very precise) /Black=0.06 (flawless)} 1/2-1/2